Workbook

Sheet Таблица 1 (1) (hidden)
M1: Приложение №1 к постановлению администрации ЗАТО Александровск от______№________
M2: Таблица № 1 (1)
A4: 2. Основные цели и задачи Подпрограммы 1 , целевые показатели (индикаторы) реализации Подпрограммы 1
A6: № п/п | B6: Цель, задачи и показатели (индикаторы) | C6: Ед. изм. | D6: Направленность* | E6: Значение показателя (индикатора) | P6: Соисполнитель, ответственный за выполнение показателя
E7: Годы реализации
E8: 2017 | F8: 2018 | H8: 2019 | J8: 2020 | L8: 2021 | N8: 2022
E9: Факт | F9: План | G9: Факт | H9: План | I9: Факт | J9: План | K9: Факт | L9: План | M9: Факт | N9: План | O9: Факт
A10: 1 | B10: 2 | C10: 3 | D10: 4 | E10: 5 | F10: 6 | G10: 7 | H10: 8 | I10: 9 | J10: 10 | K10: 11 | L10: 12 | M10: 13 | N10: 14 | O10: 15 | P10: 16
B11: Цель Подпрограммы 1: Создание комфортных, безопасных и благоприятных условий проживания граждан в многоквартирных домах на территории ЗАТО Александровск
A12: 1 | B12: Задача 1. Выполнение обязанностей собственника по оплате взносов на проведение капитального ремонта МКД в части жилых и нежилых муниципальных площадей
A13: 1.1. | B13: Процент оплаты взносов в части жилых и нежилых помещений | C13: % | D13: ö | E13: 100 | F13: 100 | H13: 100 | J13: 100 | L13: 100 | N13: 100 | P13: МКУ "ОКС"
A14: 2 | B14: Задача 3. Организация проведения капитального ремонта многоквартирных домов
A15: 2.1. | B15: Количество отремонтированных домов,включенных в краткосрочный план капитального ремонта | C15: ед. | D15: ö | E15: 39 | F15: 23 | H15: 23 | J15: 25 | L15: 25 | N15: 25 | P15: МКУ "ОКС"
A16: 2.2. | B16: Доля объектов, в которых проведен капитальный ремонт общего имущества многоквартирных домов, от запланированного количества | C16: % | D16: ö | E16: 100 | F16: 100 | H16: 100 | J16: 100 | L16: 100 | N16: 100 | P16: МКУ "ОКС"

Sheet Таблица 2 (1) (hidden)
E1: Приложение №2 к постановлению администрации ЗАТО Александровск от______№________
F2: Таблица № 2 (1)
A4: 4. Обоснование ресурсного обеспечения Подпрограммы 1
A6: Источник финансирования | B6: Всего, руб.коп. | C6: в том числе по годам реализации, руб.коп.
C7: 2018 год | D7: 2019 год | E7: 2020 год | F7: 2021 год | G7: 2022 год
A8: 1 | B8: 2 | C8: 3 | D8: 4 | E8: 5 | F8: 6 | G8: 7
A9: Всего по Подпрограмме 1 | B9: =B11+B12+B13+B14 -> 148760419.9 | C9: 41209442.91 | D9: 37051510.34 | E9: 35949902.61 | F9: 17274782.01 | G9: 17274782.01
A10: в том числе за счет средств:
A11: местного бюджета | B11: =C11+D11+E11+F11+G11 -> 92157477.03 | C11: =C18 -> 21956741.26 | D11: 18376389.74 | E11: 17274782.01 | F11: 17274782.01 | G11: 17274782.01
A12: средств областного бюджета | B12: =C12+D12+E12+F12+G12 -> 56602942.85 | C12: 19252701.65 | D12: 18675120.6 | E12: 18675120.6 | F12: 0 | G12: 0
A13: средств федерального бюджета | B13: =C13+D13+E13+F13+G13 -> 0 | C13: 0 | D13: 0 | E13: 0 | F13: 0 | G13: 0
A14: внебюджетных средств | B14: =C14+D14+E14+F14+G14 -> 0 | C14: 0 | D14: 0 | E14: 0 | F14: 0 | G14: 0
A15: в том числе по Заказчикам:
A16: администрация ЗАТО Александровск | B16: =B18+B19+B20+B21 -> 148760419.9 | C16: 41209442.91 | D16: 37051510.34 | E16: 35949902.61 | F16: 17274782.01 | G16: 17274782.01
A17: в том числе за счет средств:
A18: местного бюджета | B18: =C18+D18+E18+F18+G18 -> 92157477.03 | C18: ='Таблица 3 (1)'!F40 -> 21956741.26 | D18: ='Таблица 3 (1)'!G40 -> 18376389.74 | E18: ='Таблица 3 (1)'!H40 -> 17274782.01 | F18: ='Таблица 3 (1)'!I40 -> 17274782.01 | G18: ='Таблица 3 (1)'!J40 -> 17274782.01
A19: средств областного бюджета | B19: =C19+D19+E19+F19+G19 -> 56602942.85 | C19: ='Таблица 3 (1)'!F41 -> 19252701.65 | D19: ='Таблица 3 (1)'!G41 -> 18675120.6 | E19: ='Таблица 3 (1)'!H41 -> 18675120.6 | F19: ='Таблица 3 (1)'!I41 -> 0 | G19: ='Таблица 3 (1)'!J41 -> 0
A20: средств федерального бюджета | B20: =C20+D20+E20+F20+G20 -> 0 | C20: ='Таблица 3 (1)'!F42 -> 0 | D20: ='Таблица 3 (1)'!G42 -> 0 | E20: ='Таблица 3 (1)'!H42 -> 0 | F20: ='Таблица 3 (1)'!I42 -> 0 | G20: ='Таблица 3 (1)'!J42 -> 0
A21: внебюджетных средств | B21: =C21+D21+E21+F21+G21 -> 0 | C21: ='Таблица 3 (1)'!F43 -> 0 | D21: ='Таблица 3 (1)'!G43 -> 0 | E21: ='Таблица 3 (1)'!H43 -> 0 | F21: ='Таблица 3 (1)'!I43 -> 0 | G21: ='Таблица 3 (1)'!J43 -> 0
A22: в том числе инвестиции в основной капитал | B22: =C22+D22+E22+F22+G22 -> 0 | C22: 0 | D22: 0 | E22: 0 | F22: 0 | G22: 0

Sheet Таблица 3 (1) (hidden)
O2: Приложение №3 к постановлению администрации ЗАТО Александровск от______№________
Q3: Таблица № 3 (1)
A4: 3. Перечень основных мероприятий Подпрограммы 1
A5: № п/п | B5: Цель, задачи, основные мероприятия | C5: Срок выполнения (квартал, год) | D5: Источник финансирования | E5: Объемы финансирования, руб.коп. | K5: Показатели результативности выполнения программных мероприятий | Q5: Исполнитель, перечень организаций, участвующих в реализации основных мероприятий
E6: Всего | F6: 2018 год | G6: 2019 год | H6: 2020 год | I6: 2021 год | J6: 2022 год | K6: Наименование, ед.измерения | L6: 2018 год | M6: 2019 год | N6: 2020 год | O6: 2021 год | P6: 2022 год
A7: 1 | B7: 2 | C7: 3 | D7: 4 | E7: 5 | F7: 6 | G7: 7 | H7: 8 | I7: 9 | J7: 10 | K7: 11 | L7: 12 | M7: 13 | N7: 14 | O7: 15 | P7: 16 | Q7: 17
B8: Цель Подпрограммы 1: Создание комфортных, безопасных и благоприятных условий проживания граждан в многоквартирных домах на территории ЗАТО Александровск
A9: 1. | B9: Задача 1. Выполнение обязанностей собственника по оплате взносов на проведение капитального ремонта МКД в части жилых и нежилых муниципальных площадей
A10: 1.1. | B10: Взносы на обеспечение реализации региональной программы капитального ремонта общего имущества в многоквартирных домах в части жилых муниципальных помещений | C10: 2018-2022 годы | D10: Всего | E10: =E11+E12+E13+E14 -> 136412636.9 | F10: 38558281.77 | G10: 34532907.25 | H10: 33557229.68 | I10: 14882109.08 | J10: 14882109.08 | K10: Процент оплаты взносов в части жилых помещений, % | L10: 100 | M10: 100 | N10: 100 | O10: 100 | P10: 100 | Q10: МКУ "ОКС"
D11: МБ | E11: =F11+G11+H11+I11+J11 -> 79809694.01 | F11: 19305580.12 | G11: 15857786.65 | H11: 14882109.08 | I11: 14882109.08 | J11: 14882109.08
D12: ОБ | E12: =F12+G12+H12+I12+J12 -> 56602942.85 | F12: 19252701.65 | G12: 18675120.6 | H12: 18675120.6 | I12: 0 | J12: 0
D13: ФБ | E13: =F13+G13+H13+I13+J13 -> 0 | F13: 0 | G13: 0 | H13: 0 | I13: 0 | J13: 0
D14: ВБС | E14: =F14+G14+H14+I14+J14 -> 0 | F14: 0 | G14: 0 | H14: 0 | I14: 0 | J14: 0
A15: 1.2. | B15: Взносы на обеспечение реализации региональной программы капитального ремонта общего имущества в многоквартирных домах в части нежилых муниципальных помещений | C15: 2018-2022 годы | D15: Всего | E15: =E16+E17+E18+E19 -> 12347783.02 | F15: 2651161.14 | G15: 2518603.09 | H15: 2392672.93 | I15: 2392672.93 | J15: 2392672.93 | K15: Процент оплаты взносов в части нежилых помещений, % | L15: 100 | M15: 100 | N15: 100 | O15: 100 | P15: 100 | Q15: МКУ "ОКС"
D16: МБ | E16: =F16+G16+H16+I16+J16 -> 12347783.02 | F16: 2651161.14 | G16: 2518603.09 | H16: 2392672.93 | I16: 2392672.93 | J16: 2392672.93
D17: ОБ | E17: =F17+G17+H17+I17+J17 -> 0 | F17: 0 | G17: 0 | H17: 0 | I17: 0 | J17: 0
D18: ФБ | E18: =F18+G18+H18+I18+J18 -> 0 | F18: 0 | G18: 0 | H18: 0 | I18: 0 | J18: 0
D19: ВБС | E19: =F19+G19+H19+I19+J19 -> 0 | F19: 0 | G19: 0 | H19: 0 | I19: 0 | J19: 0
B20: Итого по задаче 1: | D20: Всего | E20: =E22+E23+E24+E25 -> 148760419.9 | F20: 41209442.91 | G20: 37051510.34 | H20: 35949902.61 | I20: 17274782.01 | J20: 17274782.01
D21: в том числе:
D22: МБ | E22: =F22+G22+H22+I22+J22 -> 92157477.03 | F22: =F16+F11 -> 21956741.26 | G22: =G16+G11 -> 18376389.74 | H22: =H16+H11 -> 17274782.01 | I22: =I16+I11 -> 17274782.01 | J22: =J16+J11 -> 17274782.01
D23: ОБ | E23: =F23+G23+H23+I23+J23 -> 56602942.85 | F23: =F17+F12 -> 19252701.65 | G23: 18675120.6 | H23: 18675120.6 | I23: 0 | J23: 0
D24: ФБ | E24: =F24+G24+H24+I24+J24 -> 0 | F24: 0 | G24: 0 | H24: 0 | I24: 0 | J24: 0
D25: ВБС | E25: =F25+G25+H25+I25+J25 -> 0 | F25: 0 | G25: 0 | H25: 0 | I25: 0 | J25: 0
A26: 2. | B26: Задача 2. Организация проведения капитального ремонта многоквартирных домов
A27: 2.1. | B27: Сбор информации, обработка данных и подготовка документов для утверждения краткосрочных планов КР МКД | C27: 2018-2022 годы | D27: Финансирования не требуется | K27: Доля объектов, в которых проведен капитальный ремонт общего имущества многоквартирных домов, от запланированного количества, % | L27: 100 | M27: 100 | N27: 100 | O27: 100 | P27: 100 | Q27: МКУ "ОКС"
B32: Итого по задаче 2: | D32: Всего | E32: =E34+E35+E36+E37 -> 0 | F32: 0 | G32: 0 | H32: 0 | I32: 0 | J32: 0
D33: в том числе:
D34: МБ | E34: =F34+G34+H34+I34+J34 -> 0 | F34: =F28 -> 0 | G34: =G28 -> 0 | H34: =H28 -> 0 | I34: =I28 -> 0 | J34: =J28 -> 0
D35: ОБ | E35: =F35+G35+H35+I35+J35 -> 0 | F35: =F29 -> 0 | G35: 0 | H35: 0 | I35: 0 | J35: 0
D36: ФБ | E36: =F36+G36+H36+I36+J36 -> 0 | F36: 0 | G36: 0 | H36: 0 | I36: 0 | J36: 0
D37: ВБС | E37: =F37+G37+H37+I37+J37 -> 0 | F37: 0 | G37: 0 | H37: 0 | I37: 0 | J37: 0
B38: ВСЕГО по Подпрограмме 1: | D38: Всего | E38: =E40+E41+E42+E43 -> 148760419.9 | F38: =F40+F41+F42+F43 -> 41209442.91 | G38: 37051510.34 | H38: 35949902.61 | I38: 17274782.01 | J38: 17274782.01
D39: в том числе:
D40: МБ | E40: =F40+G40+H40+I40+J40 -> 92157477.03 | F40: =F22+F34 -> 21956741.26 | G40: 18376389.74 | H40: 17274782.01 | I40: 17274782.01 | J40: 17274782.01
D41: ОБ | E41: =F41+G41+H41+I41+J41 -> 56602942.85 | F41: =F23+F35 -> 19252701.65 | G41: 18675120.6 | H41: 18675120.6 | I41: 0 | J41: 0
D42: ФБ | E42: =F42+G42+H42+I42+J42 -> 0 | F42: 0 | G42: 0 | H42: 0 | I42: 0 | J42: 0
D43: ВБС | E43: =F43+G43+H43+I43+J43 -> 0 | F43: 0 | G43: 0 | H43: 0 | I43: 0 | J43: 0

Sheet Таблица 1 (2) (hidden)
M1: Приложение №4 к постановлению администрации ЗАТО Александровск от______№________
O2: Таблица № 1 (2)
A4: 2. Основные цели и задачи Подпрограммы 2, целевые показатели (индикаторы) реализации Подпрограммы 2
A6: № п/п | B6: Цель, задачи и показатели (индикаторы) | C6: Ед. изм. | D6: Направленность* | E6: Значение показателя (индикатора) | P6: Соисполнитель, ответственный за выполнение показателя
E7: Годы реализации
E8: 2017 | F8: 2018 | H8: 2019 | J8: 2020 | L8: 2021 | N8: 2022
E9: Факт | F9: План | G9: Факт | H9: План | I9: Факт | J9: План | K9: Факт | L9: План | M9: Факт | N9: План | O9: Факт
A10: 1 | B10: 2 | C10: 3 | D10: 4 | E10: 5 | F10: 6 | G10: 7 | H10: 8 | I10: 9 | J10: 10 | K10: 11 | L10: 12 | M10: 13 | N10: 14 | O10: 15 | P10: 16
B11: Цель Подпрограммы 2: Повышение удовлетворенности населения ЗАТО Александровск уровнем жилищно-коммунального обслуживания
A12: 1. | B12: Задача 1. Эффективное использование объектов муниципальной собственности
A13: 1.1. | B13: Доля восстановленного жилищного фонда в общем объеме | C13: % | D13: ö | E13: 3 | F13: 5 | H13: 5 | J13: 5 | L13: 5 | N13: 5 | P13: МКУ "ОКС"
A14: 1.2. | B14: Доля неиспользуемых помещений муниципальной собственности в общем объеме | C14: % | D14: ö | E14: 5 | F14: 4 | H14: 3 | J14: 2 | L14: 1 | N14: 1
A15: 2. | B15: Задача 2. Содержание и развитие систем коммунальной инфраструктуры
A16: 2.1. | B16: Доля отремонтированных сетей водоснабжения от общего объема сетей водоснабжения | C16: % | D16: ö | E16: 0.67 | F16: 0.67 | H16: 0.67 | J16: =164.89/24500*100 -> 0.6730204082 | L16: =164.89/24500*100 -> 0.6730204082 | N16: =164.89/24500*100 -> 0.6730204082 | P16: МКУ "ОКС"
A17: 2.2. | B17: Доля отремонтированных канализационных сетей от общего объема сетей канализации | C17: % | D17: ö | E17: 0.07 | F17: 0.07 | H17: 0.07 | J17: =38.75/58820*100 -> 0.06587895274 | L17: =38.75/58820*100 -> 0.06587895274 | N17: =38.75/58820*100 -> 0.06587895274 | P17: МКУ "ОКС"
A18: 2.3. | B18: Доля отремонтированных сетей теплоснабжения от общего объема сетей теплоснабжения | C18: % | D18: ö | E18: 3.5 | F18: 5.8 | H18: 0 | J18: =240/34550*1000 -> 6.946454414 | L18: =240/34550*1000 -> 6.946454414 | N18: =240/34550*1000 -> 6.946454414 | P18: МКУ "ОКС"
A19: 2.4. | B19: Доля отремонтированных сетей электроснабжения от общего объема сетей электроснабжени | C19: % | D19: ö | E19: 0.26 | F19: 0.4 | H19: =8280/126980*100 -> 6.520711923 | J19: =1977.77/126980*100 -> 1.557544495 | L19: =1977.77/126980*100 -> 1.557544495 | N19: =1977.77/126980*100 -> 1.557544495 | P19: МКУ "ОКС"
A20: 2.5. | B20: Повышение удовлетворенности населения ЗАТО Александровск уровнем жилищно-коммунального обслуживания | C20: да -1/нет-0 | D20: ö | E20: 1 | F20: 1 | H20: 1 | J20: 1 | L20: 1 | N20: 1 | P20: МКУ "ОКС"
A21: 2.6. | B21: Уровень готовности коммунальных систем жизнеобеспечения ЗАТО Александровск к осенне-зимнему периоду | C21: % | D21: ö | E21: 100 | F21: 100 | H21: 100 | J21: 100 | L21: 100 | N21: 100 | P21: МКУ "ОКС"

Sheet Таблица 2 (2)
E1: Приложение №1 к постановлению администрации ЗАТО Александровск от «21» июня 2018г. № 1126
F2: Таблица № 2 (2)
A4: 4. Обоснование ресурсного обеспечения Подпрограммы 2
A6: Источник финансирования | B6: Всего, руб.коп. | C6: в том числе по годам реализации, руб.коп.
C7: 2018 год | D7: 2019 год | E7: 2020 год | F7: 2021 год | G7: 2022 год
A8: 1 | B8: 2 | C8: 3 | D8: 4 | E8: 5 | F8: 6 | G8: 7
A9: Всего по Подпрограмме 2 | B9: =B11+B12+B13+B14 -> 245318428.6 | C9: 56492519.27 | D9: 47839017.46 | E9: 45027473.6 | F9: 47979709.13 | G9: 47979709.13
A10: в том числе за счет средств:
A11: местного бюджета | B11: =C11+D11+E11+F11+G11 -> 245318428.6 | C11: ='Таблица 3 (2)'!F100 -> 56492519.27 | D11: ='Таблица 3 (2)'!G100 -> 47839017.46 | E11: ='Таблица 3 (2)'!H100 -> 45027473.6 | F11: ='Таблица 3 (2)'!I100 -> 47979709.13 | G11: ='Таблица 3 (2)'!J100 -> 47979709.13
A12: средств областного бюджета | B12: =C12+D12+E12+F12+G12 -> 0 | C12: 0 | D12: 0 | E12: 0 | F12: 0 | G12: 0
A13: средств федерального бюджета | B13: =C13+D13+E13+F13+G13 -> 0 | C13: =C20 -> 0 | D13: 0 | E13: 0 | F13: 0 | G13: 0
A14: внебюджетных средств | B14: =C14+D14+E14+F14+G14 -> 0 | C14: 0 | D14: 0 | E14: 0 | F14: 0 | G14: 0
A15: в том числе по Заказчикам:
A16: администрация ЗАТО Александровск | B16: =B18+B19+B20+B21 -> 245318428.6 | C16: 56492519.27 | D16: 47839017.46 | E16: 45027473.6 | F16: 47979709.13 | G16: 47979709.13
A17: в том числе за счет средств:
A18: местного бюджета | B18: =C18+D18+E18+F18+G18 -> 245318428.6 | C18: ='Таблица 3 (2)'!F100 -> 56492519.27 | D18: ='Таблица 3 (2)'!G100 -> 47839017.46 | E18: ='Таблица 3 (2)'!H100 -> 45027473.6 | F18: ='Таблица 3 (2)'!I100 -> 47979709.13 | G18: ='Таблица 3 (2)'!J100 -> 47979709.13
A19: средств областного бюджета | B19: =C19+D19+E19+F19+G19 -> 0 | C19: 0 | D19: 0 | E19: 0 | F19: 0 | G19: 0
A20: средств федерального бюджета | B20: =C20+D20+E20+F20+G20 -> 0 | C20: ='Таблица 3 (1)'!F42 -> 0 | D20: ='Таблица 3 (1)'!G42 -> 0 | E20: ='Таблица 3 (1)'!H42 -> 0 | F20: ='Таблица 3 (1)'!I42 -> 0 | G20: ='Таблица 3 (1)'!J42 -> 0
A21: внебюджетных средств | B21: =C21+D21+E21+F21+G21 -> 0 | C21: ='Таблица 3 (1)'!F43 -> 0 | D21: ='Таблица 3 (1)'!G43 -> 0 | E21: ='Таблица 3 (1)'!H43 -> 0 | F21: ='Таблица 3 (1)'!I43 -> 0 | G21: ='Таблица 3 (1)'!J43 -> 0
A22: в том числе инвестиции в основной капитал | B22: =C22+D22+E22+F22+G22 -> 3000000 | C22: 3000000 | D22: 0 | E22: 0 | F22: 0 | G22: 0

Sheet Таблица 3 (2)
L2: Приложение №2 к постановлению администрации ЗАТО Александровск от «21» июня 2018г. № 1126
O3: Таблица № 3 (2)
A4: 3. Перечень основных мероприятий Подпрограммы 2
A5: № п/п | B5: Цель, задачи, основные мероприятия | C5: Срок выполнения (квартал, год) | D5: Источник финансирования | E5: Объемы финансирования, руб.коп. | K5: Показатели результативности выполнения программных мероприятий | Q5: Исполнитель, перечень организаций, участвующих в реализации основных мероприятий
E6: Всего | F6: 2018 год | G6: 2019 год | H6: 2020 год | I6: 2021 год | J6: 2022 год | K6: Наименование, ед.измерения | L6: 2018 год | M6: 2019 год | N6: 2020 год | O6: 2021 год | P6: 2022 год
A7: 1 | B7: 2 | C7: 3 | D7: 4 | E7: 5 | F7: 6 | G7: 7 | H7: 8 | I7: 9 | J7: 10 | K7: 11 | L7: 12 | M7: 13 | N7: 14 | O7: 15 | P7: 16 | Q7: 17
B8: Цель Подпрограммы 2: Повышение удовлетворенности населения ЗАТО Александровск уровнем жилищно-коммунального обслуживания
A9: 1 | B9: Задача 1. Эффективное использование объектов муниципальной собственности
A10: 1.1. | B10: Ремонт пустующих квартир | C10: 2018-2022 годы | D10: Всего | E10: =E11+E12+E13+E14 -> 27068804.22 | F10: 7079608.22 | G10: 3773392.27 | H10: 3437110.89 | I10: 6389346.42 | J10: 6389346.42 | K10: Количество отремонтированных квартир, ед. | L10: 25 | M10: 25 | N10: 30 | O10: 30 | P10: 50 | Q10: МКУ "ОКС"
D11: МБ | E11: =F11+G11+H11+I11+J11 -> 27068804.22 | F11: 7079608.22 | G11: =6725627.81-2952235.54 -> 3773392.27 | H11: =6389346.42-2952235.53 -> 3437110.89 | I11: 6389346.42 | J11: 6389346.42
D12: ОБ | E12: =F12+G12+H12+I12+J12 -> 0 | F12: 0 | G12: 0 | H12: 0 | I12: 0 | J12: 0
D13: ФБ | E13: =F13+G13+H13+I13+J13 -> 0 | F13: 0 | G13: 0 | H13: 0 | I13: 0 | J13: 0
D14: ВБС | E14: =F14+G14+H14+I14+J14 -> 0 | F14: 0 | G14: 0 | H14: 0 | I14: 0 | J14: 0
A15: 1.2. | B15: Организация ограничения доступа в пустующий муниципальный жилой и нежилой фонд ЗАТО Александровск | C15: 2018-2022 годы | D15: Всего | E15: =E16+E17+E18+E19 -> 1000000 | F15: 200000 | G15: 200000 | H15: 200000 | I15: 200000 | J15: 200000 | K15: Объем выполненных работ, % | L15: 100 | M15: 100 | N15: 100 | O15: 100 | P15: 100 | Q15: МКУ ОКС
D16: МБ | E16: =F16+G16+H16+I16+J16 -> 1000000 | F16: 200000 | G16: 200000 | H16: 200000 | I16: 200000 | J16: 200000
D17: ОБ | E17: =F17+G17+H17+I17+J17 -> 0 | F17: 0 | G17: 0 | H17: 0 | I17: 0 | J17: 0
D18: ФБ | E18: =F18+G18+H18+I18+J18 -> 0 | F18: 0 | G18: 0 | H18: 0 | I18: 0 | J18: 0
D19: ВБС | E19: =F19+G19+H19+I19+J19 -> 0 | F19: 0 | G19: 0 | H19: 0 | I19: 0 | J19: 0
A20: 1.3. | B20: Оплата за содержание и коммунальные услуги по жилому и нежилому муниципальному фонду | C20: 2018-2022 годы | D20: Всего | E20: =E21+E22+E23+E24 -> 204230068.6 | F20: 42477085.21 | G20: 42233487.54 | H20: 39839831.94 | I20: 39839831.94 | J20: 39839831.94 | K20: Объем выполненных работ, % | L20: 100 | M20: 100 | N20: 100 | O20: 100 | P20: 100 | Q20: МКУ СМИ, МКУ ОКС | R20: необходимо добавить цифру МКУ СМИ по пустующему
D21: МБ | E21: =F21+G21+H21+I21+J21 -> 204230068.6 | F21: =42557586.69-80501.48 -> 42477085.21 | G21: 42233487.54 | H21: 39839831.94 | I21: 39839831.94 | J21: 39839831.94
D22: ОБ | E22: =F22+G22+H22+I22+J22 -> 0 | F22: =F27+F32+F37 -> 0 | G22: 0 | H22: 0 | I22: 0 | J22: 0
D23: ФБ | E23: =F23+G23+H23+I23+J23 -> 0 | F23: 0 | G23: 0 | H23: 0 | I23: 0 | J23: 0
D24: ВБС | E24: =F24+G24+H24+I24+J24 -> 0 | F24: 0 | G24: 0 | H24: 0 | I24: 0 | J24: 0
B25: МКУ ОКС (теплоэнергия зданий) | D25: Всего | E25: =E26+E27+E28+E29 -> 16678188.02 | F25: 3580931.41 | G25: 3401884.84 | H25: 3231790.59 | I25: 3231790.59 | J25: 3231790.59
D26: МБ | E26: =F26+G26+H26+I26+J26 -> 16678188.02 | F26: 3580931.41 | G26: 3401884.84 | H26: 3231790.59 | I26: 3231790.59 | J26: 3231790.59
D27: ОБ | E27: =F27+G27+H27+I27+J27 -> 0 | F27: 0 | G27: 0 | H27: 0 | I27: 0 | J27: 0
D28: ФБ | E28: =F28+G28+H28+I28+J28 -> 0 | F28: 0 | G28: 0 | H28: 0 | I28: 0 | J28: 0
D29: ВБС | E29: =F29+G29+H29+I29+J29 -> 0 | F29: 0 | G29: 0 | H29: 0 | I29: 0 | J29: 0
B30: МКУ ОКС (содержание отдельностоящих зданий) | D30: Всего | E30: =E31+E32+E33+E34 -> 5068337.99 | F30: 1088209.98 | G30: 1033799.48 | H30: 982109.51 | I30: 982109.51 | J30: 982109.51
D31: МБ | E31: =F31+G31+H31+I31+J31 -> 5068337.99 | F31: 1088209.98 | G31: 1033799.48 | H31: 982109.51 | I31: 982109.51 | J31: 982109.51
D32: ОБ | E32: =F32+G32+H32+I32+J32 -> 0 | F32: 0 | G32: 0 | H32: 0 | I32: 0 | J32: 0
D33: ФБ | E33: =F33+G33+H33+I33+J33 -> 0 | F33: 0 | G33: 0 | H33: 0 | I33: 0 | J33: 0
D34: ВБС | E34: =F34+G34+H34+I34+J34 -> 0 | F34: 0 | G34: 0 | H34: 0 | I34: 0 | J34: 0
B35: МКУ СМИ (пустующее ЗАТО Александровск) | D35: Всего | E35: =E36+E37+E38+E39 -> 212957703.3 | F35: 45723607.81 | G35: 43437427.42 | H35: 41265556.04 | I35: 41265556.04 | J35: 41265556.04
D36: МБ | E36: =F36+G36+H36+I36+J36 -> 212957703.3 | F36: 45723607.81 | G36: 43437427.42 | H36: 41265556.04 | I36: 41265556.04 | J36: 41265556.04
D37: ОБ | E37: =F37+G37+H37+I37+J37 -> 0 | F37: 0 | G37: 0 | H37: 0 | I37: 0 | J37: 0
D38: ФБ | E38: =F38+G38+H38+I38+J38 -> 0 | F38: 0 | G38: 0 | H38: 0 | I38: 0 | J38: 0
D39: ВБС | E39: =F39+G39+H39+I39+J39 -> 0 | F39: 0 | G39: 0 | H39: 0 | I39: 0 | J39: 0
A40: 1.4. | B40: Создание условий безопасной среды проживания в ЗАТО Александровск | C40: 2018-2022 годы | D40: Всего | E40: =E41+E42+E43+E44 -> 2950054.6 | F40: 2316647.04 | G40: 164521.45 | H40: 156295.37 | I40: 156295.37 | J40: 156295.37 | K40: Объем выполненных работ, % | L40: 100 | M40: 100 | N40: 100 | O40: 100 | P40: 100 | Q40: МКУ СМИ, МКУ ОКС
D41: МБ | E41: =F41+G41+H41+I41+J41 -> 2950054.6 | F41: =173180.47+1434416.74+709049.83 -> 2316647.04 | G41: 164521.45 | H41: =156295.37 -> 156295.37 | I41: 156295.37 | J41: 156295.37 | R41: =592511.81+2513493.86+2012855.35 -> 5118861.02
D42: ОБ | E42: =F42+G42+H42+I42+J42 -> 0 | F42: 0 | G42: 0 | H42: 0 | I42: 0 | J42: 0
D43: ФБ | E43: =F43+G43+H43+I43+J43 -> 0 | F43: 0 | G43: 0 | H43: 0 | I43: 0 | J43: 0
D44: ВБС | E44: =F44+G44+H44+I44+J44 -> 0 | F44: 0 | G44: 0 | H44: 0 | I44: 0 | J44: 0
A45: 1.5. | B45: Высвобождение малозаселенных домов | C45: 2018-2022 годы | D45: не требует финансирования | K45: Высвобождение малозаселенных домов, ед. | L45: 0 | M45: 1 | N45: 0 | O45: 1 | P45: 0 | Q45: МКУ СМИ
B50: Итого по задаче 1: | D50: Всего | E50: =E52+E53+E54+E55 -> 235248927.4 | F50: 52073340.47 | G50: 46371401.26 | H50: 43633238.2 | I50: 46585473.73 | J50: 46585473.73
D51: в том числе:
D52: МБ | E52: =F52+G52+H52+I52+J52 -> 235248927.4 | F52: =F11+F16+F21+F41 -> 52073340.47 | G52: =G11+G16+G21+G41 -> 46371401.26 | H52: =H11+H16+H21+H41 -> 43633238.2 | I52: =I11+I16+I21+I41 -> 46585473.73 | J52: =J11+J16+J21+J41 -> 46585473.73
D53: ОБ | E53: =F53+G53+H53+I53+J53 -> 0 | F53: =F12+F17+F22 -> 0 | G53: =G12+G47+G17 -> 0 | H53: 0 | I53: 0 | J53: 0
D54: ФБ | E54: =F54+G54+H54+I54+J54 -> 0 | F54: =F13+F18+F23 -> 0 | G54: 0 | H54: 0 | I54: 0 | J54: 0
D55: ВБС | E55: =F55+G55+H55+I55+J55 -> 0 | F55: =F14+F19+F24 -> 0 | G55: 0 | H55: 0 | I55: 0 | J55: 0
A56: 2. | B56: Задача 2: Содержание и развитие систем коммунальной инфраструктуры
A57: 2.1. | B57: Капитальный ремонт сетей водоснабжения и водоотведения | C57: 2018-2022 годы | D57: Всего | E57: =E58+E59+E60+E61 -> 2983615.1 | F57: 1019278.8 | G57: 510217.22 | H57: 484706.36 | I57: 484706.36 | J57: 484706.36 | K57: Протяженность отремонтированных сетей водоснабжения, м | L57: 179.88 | M57: 164.8898108 | N57: 164.8898108 | O57: 164.8898108 | P57: 164.8898108 | Q57: МКУ "ОКС" | R57: 512097,07 (ремонт безхозных колодцов и водоводов)
D58: МБ | E58: =F58+G58+H58+I58+J58 -> 2983615.1 | F58: =1544859.17-525580.37 -> 1019278.8 | G58: 510217.22 | H58: 484706.36 | I58: 484706.36 | J58: 484706.36
D59: ОБ | E59: =F59+G59+H59+I59+J59 -> 0 | F59: 0 | G59: 0 | H59: 0 | I59: 0 | J59: 0
D60: ФБ | E60: =F60+G60+H60+I60+J60 -> 0 | F60: 0 | G60: 0 | H60: 0 | I60: 0 | J60: 0
D61: ВБС | E61: =F61+G61+H61+I61+J61 -> 0 | F61: 0 | G61: 0 | H61: 0 | I61: 0 | J61: 0
A62: 2.2. | B62: Капитальный ремонт сетей электроснабжения | C62: 2018-2022 годы | D62: Всего | E62: =E63+E64+E65+E66 -> 0 | F62: 0 | G62: 0 | H62: 0 | I62: 0 | J62: 0 | K62: Протяженность отремонтированных сетей водоотведения, м | L62: 40.73125427 | M62: 38.74618339 | N62: 38.74618339 | O62: 38.74618339 | P62: 38.74618339 | Q62: МКУ "ОКС"
D63: МБ | E63: =F63+G63+H63+I63+J63 -> 0 | F63: 0 | G63: 0 | H63: 0 | I63: 0 | J63: 0
D64: ОБ | E64: =F64+G64+H64+I64+J64 -> 0 | F64: 0 | G64: 0 | H64: 0 | I64: 0 | J64: 0
D65: ФБ | E65: =F65+G65+H65+I65+J65 -> 0 | F65: 0 | G65: 0 | H65: 0 | I65: 0 | J65: 0
D66: ВБС | E66: =F66+G66+H66+I66+J66 -> 0 | F66: 0 | G66: 0 | H66: 0 | I66: 0 | J66: 0
A67: 2.2. | B67: Капитальный ремонт сетей теплоснабжения | C67: 2018-2022 годы | D67: Всего | E67: =E68+E69+E70+E71 -> 3685986.1 | F67: 0 | G67: 957398.98 | H67: 909529.04 | I67: 909529.04 | J67: 909529.04 | K67: Протяженность отремонтированных сетей теплоснабжения, м | L67: 250 | M67: 240 | N67: 240 | O67: 240 | P67: 240 | Q67: МКУ "ОКС"
D68: МБ | E68: =F68+G68+H68+I68+J68 -> 3685986.1 | F68: 0 | G68: 957398.98 | H68: 909529.04 | I68: 909529.04 | J68: 909529.04
D69: ОБ | E69: =F69+G69+H69+I69+J69 -> 0 | F69: 0 | G69: 0 | H69: 0 | I69: 0 | J69: 0
D70: ФБ | E70: =F70+G70+H70+I70+J70 -> 0 | F70: 0 | G70: 0 | H70: 0 | I70: 0 | J70: 0
D71: ВБС | E71: =F71+G71+H71+I71+J71 -> 0 | F71: 0 | G71: 0 | H71: 0 | I71: 0 | J71: 0
A72: 2.4. | B72: Выполненние работ по созданию проекта перехода на закрытую систему теплоснабжения ЗАТО Александровск | C72: 2018-2022 годы | D72: Всего | E72: =E73+E74+E75+E76 -> 3000000 | F72: 3000000 | G72: 0 | H72: 0 | I72: 0 | J72: 0 | K72: Объем выполненных работ, % | L72: 100 | M72: 0 | N72: 0 | O72: 0 | P72: 0 | Q72: МКУ "ОКС"
D73: МБ | E73: =F73+G73+H73+I73+J73 -> 3000000 | F73: =3000000 -> 3000000 | G73: 0 | H73: 0 | I73: 0 | J73: 0
D74: ОБ | E74: =F74+G74+H74+I74+J74 -> 0 | F74: 0 | G74: 0 | H74: 0 | I74: 0 | J74: 0
D75: ФБ | E75: =F75+G75+H75+I75+J75 -> 0 | F75: 0 | G75: 0 | H75: 0 | I75: 0 | J75: 0
D76: ВБС | E76: =F76+G76+H76+I76+J76 -> 0 | F76: 0 | G76: 0 | H76: 0 | I76: 0 | J76: 0
A77: 2.5. | B77: Корректировка (актуализация ) схемы теплоснабжения в границах муниципального образования ЗАТО Александровск | C77: 2018-2022 годы | D77: Всего | E77: =E78+E79+E80+E81 -> 399900 | F77: 399900 | G77: 0 | H77: 0 | I77: 0 | J77: 0 | K77: Объем выполненных работ, % | L77: 100 | Q77: МКУ "ОКС"
D78: МБ | E78: =F78+G78+H78+I78+J78 -> 399900 | F78: 399900 | G78: 0 | H78: 0 | I78: 0 | J78: 0
D79: ОБ | E79: =F79+G79+H79+I79+J79 -> 0 | F79: 0 | G79: 0 | H79: 0 | I79: 0 | J79: 0
D80: ФБ | E80: =F80+G80+H80+I80+J80 -> 0 | F80: 0 | G80: 0 | H80: 0 | I80: 0 | J80: 0
D81: ВБС | E81: =F81+G81+H81+I81+J81 -> 0 | F81: 0 | G81: 0 | H81: 0 | I81: 0 | J81: 0
A82: 2.6. | B82: Реализация проекта по организации водозабора в системе г. Снежногорск | C82: 2018-2022 годы | D82: Всего | E82: =E83+E84+E85+E86 -> 0 | F82: 0 | G82: 0 | H82: 0 | I82: 0 | J82: 0 | K82: Объем выполненных работ, % | L82: 0 | M82: 100 | Q82: МКУ "ОКС"
D83: МБ | E83: =F83+G83+H83+I83+J83 -> 0 | F83: 0 | G83: 0 | H83: 0 | I83: 0 | J83: 0
D84: ОБ | E84: =F84+G84+H84+I84+J84 -> 0 | F84: 0 | G84: 0 | H84: 0 | I84: 0 | J84: 0
D85: ФБ | E85: =F85+G85+H85+I85+J85 -> 0 | F85: 0 | G85: 0 | H85: 0 | I85: 0 | J85: 0
D86: ВБС | E86: =F86+G86+H86+I86+J86 -> 0 | F86: 0 | G86: 0 | H86: 0 | I86: 0 | J86: 0
A87: 2.7. | B87: Выполнение работ по модернизации лифтов, отработавших назначенный срок службы | C87: 2018-2022 годы | D87: Всего | E87: =E88+E89+E90+E91 -> 0 | F87: 0 | G87: 0 | H87: 0 | I87: 0 | J87: 0 | K87: Количество модернизированных или отремонтированных лифтов, ед. | L87: 3 | M87: 10 | N87: 10 | O87: 10 | P87: 10 | Q87: МКУ "ОКС"
D88: МБ | E88: =F88+G88+H88+I88+J88 -> 0 | F88: 0 | G88: 0 | H88: 0 | I88: 0 | J88: 0
D89: ОБ | E89: =F89+G89+H89+I89+J89 -> 0 | F89: 0 | G89: 0 | H89: 0 | I89: 0 | J89: 0
D90: ФБ | E90: =F90+G90+H90+I90+J90 -> 0 | F90: 0 | G90: 0 | H90: 0 | I90: 0 | J90: 0
D91: ВБС | E91: =F91+G91+H91+I91+J91 -> 0 | F91: 0 | G91: 0 | H91: 0 | I91: 0 | J91: 0
B92: Итого по задаче 2: | D92: Всего | E92: =E94+E95+E96+E97 -> 10069501.2 | F92: 4419178.8 | G92: 1467616.2 | H92: 1394235.4 | I92: 1394235.4 | J92: 1394235.4
D93: в том числе:
D94: МБ | E94: =F94+G94+H94+I94+J94 -> 10069501.2 | F94: =F58+F63++F68+F73+F78+F83+F88 -> 4419178.8 | G94: =G58+G63++G68+G73+G78+G83+G88 -> 1467616.2 | H94: =H58+H63++H68+H73+H78+H83+H88 -> 1394235.4 | I94: =I58+I63++I68+I73+I78+I83+I88 -> 1394235.4 | J94: =J58+J63++J68+J73+J78+J83+J88 -> 1394235.4
D95: ОБ | E95: =F95+G95+H95+I95+J95 -> 0 | F95: =F59+F64++F69+F74+F79+F84+F89 -> 0 | G95: 0 | H95: 0 | I95: 0 | J95: 0
D96: ФБ | E96: =F96+G96+H96+I96+J96 -> 0 | F96: 0 | G96: 0 | H96: 0 | I96: 0 | J96: 0
D97: ВБС | E97: =F97+G97+H97+I97+J97 -> 0 | F97: 0 | G97: 0 | H97: 0 | I97: 0 | J97: 0
B98: ВСЕГО по Подпрограмме 2: | D98: Всего | E98: =E100+E101+E102+E103 -> 245318428.6 | F98: 56492519.27 | G98: 47839017.46 | H98: 45027473.6 | I98: 47979709.13 | J98: 47979709.13
D99: в том числе:
D100: МБ | E100: =F100+G100+H100+I100+J100 -> 245318428.6 | F100: =F94+F52 -> 56492519.27 | G100: =G94+G52 -> 47839017.46 | H100: 45027473.6 | I100: 47979709.13 | J100: 47979709.13
D101: ОБ | E101: =F101+G101+H101+I101+J101 -> 0 | F101: 0 | G101: 0 | H101: 0 | I101: 0 | J101: 0
D102: ФБ | E102: =F102+G102+H102+I102+J102 -> 0 | F102: 0 | G102: 0 | H102: 0 | I102: 0 | J102: 0
D103: ВБС | E103: =F103+G103+H103+I103+J103 -> 0 | F103: 0 | G103: 0 | H103: 0 | I103: 0 | J103: 0
F106: =7452788.69+48536862.6 -> 55989651.29
F107: =F98-F106 -> 502867.98

Sheet Таблица 1 (3) (hidden)
I1: Приложение №7 к постановлению администрации ЗАТО Александровск от______№________
O2: Таблица № 1 (3)
A4: 2. Основные цели и задачи Подпрограммы 3, целевые показатели (индикаторы) реализации Подпрограммы 3
A6: № п/п | B6: Цель, задачи и показатели (индикаторы) | C6: Ед. изм. | D6: Направленность* | E6: Значение показателя (индикатора) | P6: Соисполнитель, ответственный за выполнение показателя
E7: Годы реализации
E8: 2017 | F8: 2018 | H8: 2019 | J8: 2020 | L8: 2021 | N8: 2022
E9: Факт | F9: План | G9: Факт | H9: План | I9: Факт | J9: План | K9: Факт | L9: План | M9: Факт | N9: План | O9: Факт
A10: 1 | B10: 2 | C10: 3 | D10: 4 | E10: 5 | F10: 6 | G10: 7 | H10: 8 | I10: 9 | J10: 10 | K10: 11 | L10: 12 | M10: 13 | N10: 14 | O10: 15 | P10: 16
B11: Цель Подпрограммы 3: Совершенствование системы организации погребения и оказания услуг по погребению
A12: 1 | B12: Задача 1: Рациональное использование земель действующего кладбища на основе данных инвентаризации захоронений, строительство общественного кладбища на территории муниципального образования ЗАТО Александровск
A13: 1.1. | B13: 1. Услуга предоставляемая по гарантированному перечню* | C13: количество обращений | D13: ö | E13: 98 | F13: 98 | H13: 98 | J13: 98 | L13: 98 | N13: 98 | P13: МКУ "ОКС"
A14: 2 | B14: Задача 2: Выполнение комплекса работ по благоустройству и надлежащему содержанию общественных кладбищ
A15: 2.1. | B15: Доля исполненных мероприятий в области благоустройства и исполнения работ по содержанию на основе конкурсного отбора подрядчиков | C15: % | D15: ö | E15: 100 | F15: 100 | H15: 100 | J15: 100 | L15: 100 | N15: 100 | P15: МКУ "ОКС"
A16: 3. | B16: Задача 3: Реконструкция объектов муниципальной собственности (кладбище с.Белокаменка)
A17: 3.1. | B17: Исполнение работ по реконструкции | C17: да - 1/ нет- 0 | D17: ö | E17: 0 | F17: 1 | H17: 1 | J17: 0 | L17: 0 | N17: 0 | P17: МКУ "ОКС"
A18: 4 | B18: Задача 4: Строительство объекта похоронного назначения (кладбища).
A19: 4.1. | B19: Доля исполнения строительных работ | C19: % | E19: 0 | F19: 0 | H19: 0 | J19: 100 | L19: 0 | N19: 0 | P19: МКУ "ОКС"
A21: * Информация для анализа масштабности проблемы

Sheet Таблица 2 (3)
D1: Приложение №3 к постановлению администрации ЗАТО Александровск от «21» июня 2018г. № 1126
G2: Таблица № 2 (3)
A4: 4. Обоснование ресурсного обеспечения Подпрограммы 3
A6: Источник финансирования | B6: Всего, руб.коп. | C6: в том числе по годам реализации, руб.коп.
C7: 2018 год | D7: 2019 год | E7: 2020 год | F7: 2021 год | G7: 2022 год
A8: 1 | B8: 2 | C8: 3 | D8: 4 | E8: 5 | F8: 6 | G8: 7
A9: Всего по Подпрограмме 3 | B9: =B11+B12+B13+B14 -> 5291805.4 | C9: 3458361.08 | D9: 458361.08 | E9: 458361.08 | F9: 458361.08 | G9: 458361.08
A10: в том числе за счет средств:
A11: местного бюджета | B11: =C11+D11+E11+F11+G11 -> 5291805.4 | C11: ='Таблица 3 (3)'!F64 -> 3458361.08 | D11: ='Таблица 3 (3)'!G64 -> 458361.08 | E11: ='Таблица 3 (3)'!H64 -> 458361.08 | F11: ='Таблица 3 (3)'!I64 -> 458361.08 | G11: ='Таблица 3 (3)'!J64 -> 458361.08
A12: средств областного бюджета | B12: =C12+D12+E12+F12+G12 -> 0 | C12: 0 | D12: 0 | E12: 0 | F12: 0 | G12: 0
A13: средств федерального бюджета | B13: =C13+D13+E13+F13+G13 -> 0 | C13: =C20 -> 0 | D13: 0 | E13: 0 | F13: 0 | G13: 0
A14: внебюджетных средств | B14: =C14+D14+E14+F14+G14 -> 0 | C14: 0 | D14: 0 | E14: 0 | F14: 0 | G14: 0
A15: в том числе по Заказчикам:
A16: администрация ЗАТО Александровск | B16: =B18+B19+B20+B21 -> 5291805.4 | C16: 3458361.08 | D16: 458361.08 | E16: 458361.08 | F16: 458361.08 | G16: 458361.08
A17: в том числе за счет средств:
A18: местного бюджета | B18: =C18+D18+E18+F18+G18 -> 5291805.4 | C18: ='Таблица 3 (3)'!F64 -> 3458361.08 | D18: ='Таблица 3 (3)'!G64 -> 458361.08 | E18: ='Таблица 3 (3)'!H64 -> 458361.08 | F18: ='Таблица 3 (3)'!I64 -> 458361.08 | G18: ='Таблица 3 (3)'!J64 -> 458361.08
A19: средств областного бюджета | B19: =C19+D19+E19+F19+G19 -> 0 | C19: 0 | D19: 0 | E19: 0 | F19: 0 | G19: 0
A20: средств федерального бюджета | B20: =C20+D20+E20+F20+G20 -> 0 | C20: ='Таблица 3 (1)'!F42 -> 0 | D20: ='Таблица 3 (1)'!G42 -> 0 | E20: ='Таблица 3 (1)'!H42 -> 0 | F20: ='Таблица 3 (1)'!I42 -> 0 | G20: ='Таблица 3 (1)'!J42 -> 0
A21: внебюджетных средств | B21: =C21+D21+E21+F21+G21 -> 0 | C21: ='Таблица 3 (1)'!F43 -> 0 | D21: ='Таблица 3 (1)'!G43 -> 0 | E21: ='Таблица 3 (1)'!H43 -> 0 | F21: ='Таблица 3 (1)'!I43 -> 0 | G21: ='Таблица 3 (1)'!J43 -> 0
A22: в том числе инвестиции в основной капитал | B22: =C22+D22+E22+F22+G22 -> 3000000 | C22: =3000000 -> 3000000 | D22: 0 | E22: 0 | F22: 0 | G22: 0

Sheet Таблица 3 (3)
M2: Приложение №4 к постановлению администрации ЗАТО Александровск от «21» июня 2018г. № 1126
O3: Таблица № 3 (3)
A4: 3. Перечень основных мероприятий Подпрограммы 3
A5: № п/п | B5: Цель, задачи, основные мероприятия | C5: Срок выполнения (квартал, год) | D5: Источник финансирования | E5: Объемы финансирования, руб.коп. | K5: Показатели результативности выполнения программных мероприятий | Q5: Исполнитель, перечень организаций, участвующих в реализации основных мероприятий
E6: Всего | F6: 2018 год | G6: 2019 год | H6: 2020 год | I6: 2021 год | J6: 2022 год | K6: Наименование, ед.измерения | L6: 2018 год | M6: 2019 год | N6: 2020 год | O6: 2021 год | P6: 2022 год
A7: 1 | B7: 2 | C7: 3 | D7: 4 | E7: 5 | F7: 6 | G7: 7 | H7: 8 | I7: 9 | J7: 10 | K7: 11 | L7: 12 | M7: 13 | N7: 14 | O7: 15 | P7: 16 | Q7: 17
B8: Цель Подпрограммы 3:Совершенствование системы организации погребения и оказания услуг по погребению
A9: 1. | B9: Задача 1: Рациональное использование земель действующего кладбища на основе данных инвентаризации захоронений, строительство общественного кладбища на территории муниципального образования ЗАТО Александровск
A10: 1.1. | B10: Строительство общественного кладбища на территории муниципального образования ЗАТО Александровск | C10: 2018 | D10: Всего | E10: =E11+E12+E13+E14 -> 0 | F10: 0 | G10: 0 | H10: 0 | I10: 0 | J10: 0
D11: МБ | E11: =F11+G11+H11+I11+J11 -> 0 | F11: =3000000-3000000 -> 0 | G11: 0 | H11: 0 | I11: 0 | J11: 0
D12: ОБ | E12: =F12+G12+H12+I12+J12 -> 0 | F12: 0 | G12: 0 | H12: 0 | I12: 0 | J12: 0
D13: ФБ | E13: =F13+G13+H13+I13+J13 -> 0 | F13: 0 | G13: 0 | H13: 0 | I13: 0 | J13: 0
D14: ВБС | E14: =F14+G14+H14+I14+J14 -> 0 | F14: 0 | G14: 0 | H14: 0 | I14: 0 | J14: 0
A15: 1.2. | B15: Проведение инвентаризации захоронений | C15: 2018 | D15: не требует финансирования
B20: Итого по задаче 1: | D20: Всего | E20: =E22+E23+E24+E25 -> 0 | F20: 0 | G20: 0 | H20: 0 | I20: 0 | J20: 0
D21: в том числе:
D22: МБ | E22: =F22+G22+H22+I22+J22 -> 0 | F22: =F11 -> 0 | G22: =G11 -> 0 | H22: =H11 -> 0 | I22: =I11 -> 0 | J22: =J11 -> 0
D23: ОБ | E23: 0 | F23: 0 | G23: 0 | H23: 0 | I23: 0 | J23: 0
D24: ФБ | E24: =F24+G24+H24+I24+J24 -> 0 | F24: =F8+F13 -> 0 | G24: 0 | H24: 0 | I24: 0 | J24: 0
D25: ВБС | E25: =F25+G25+H25+I25+J25 -> 0 | F25: 0 | G25: 0 | H25: 0 | I25: 0 | J25: 0
A26: 2. | B26: Задача 2: Выполнение комплекса работ по благоустройству и надлежащему содержанию общественных кладбищ
A27: 2.1. | B27: Организация ритуальных услуг и содержание мест захоронения | C27: 2018-2022 годы | D27: Всего | E27: =E28+E29+E30+E31 -> 2291805.4 | F27: 458361.08 | G27: 458361.08 | H27: 458361.08 | I27: 458361.08 | J27: 458361.08 | K27: Объем выполненных работ, % | L27: 100 | M27: 100 | N27: 100 | O27: 100 | P27: 100 | Q27: МКУ "ОКС"
D28: МБ | E28: =F28+G28+H28+I28+J28 -> 2291805.4 | F28: =458361.08 -> 458361.08 | G28: 458361.08 | H28: 458361.08 | I28: 458361.08 | J28: 458361.08
D29: ОБ | E29: =F29+G29+H29+I29+J29 -> 0 | F29: 0 | G29: 0 | H29: 0 | I29: 0 | J29: 0
D30: ФБ | E30: =F30+G30+H30+I30+J30 -> 0 | F30: 0 | G30: 0 | H30: 0 | I30: 0 | J30: 0
D31: ВБС | E31: =F31+G31+H31+I31+J31 -> 0 | F31: 0 | G31: 0 | H31: 0 | I31: 0 | J31: 0
B32: Итого по задаче 2: | D32: Всего | E32: =E34+E35+E36+E37 -> 2291805.4 | F32: 458361.08 | G32: 458361.08 | H32: 458361.08 | I32: 458361.08 | J32: 458361.08
D33: в том числе:
D34: МБ | E34: =F34+G34+H34+I34+J34 -> 2291805.4 | F34: =F28 -> 458361.08 | G34: =G28 -> 458361.08 | H34: =H28 -> 458361.08 | I34: =I28 -> 458361.08 | J34: =J28 -> 458361.08
D35: ОБ | E35: =F35+G35+H35+I35+J35 -> 0 | F35: =F29 -> 0 | G35: 0 | H35: 0 | I35: 0 | J35: 0
D36: ФБ | E36: =F36+G36+H36+I36+J36 -> 0 | F36: 0 | G36: 0 | H36: 0 | I36: 0 | J36: 0
D37: ВБС | E37: =F37+G37+H37+I37+J37 -> 0 | F37: 0 | G37: 0 | H37: 0 | I37: 0 | J37: 0
A38: 3 | B38: Задача 3: 3. Реконструкция объектов муниципальной собственности (кладбище с.Белокаменка)
A39: 3.1. | B39: Реконструкция действующего кладбища (отсыпка территории) | C39: 2018-2019 | D39: Всего | E39: =E40+E41+E42+E43 -> 3000000 | F39: 3000000 | G39: 0 | H39: 0 | I39: 0 | J39: 0 | K39: Количество проектов, ед. | L39: 1 | M39: 0 | N39: 0 | O39: 0 | P39: 0 | Q39: МКУ "ОКС"
D40: МБ | E40: =F40+G40+H40+I40+J40 -> 3000000 | F40: 3000000 | G40: 0 | H40: 0 | I40: 0 | J40: 0
D41: ОБ | E41: =F41+G41+H41+I41+J41 -> 0 | F41: 0 | G41: 0 | H41: 0 | I41: 0 | J41: 0 | K41: Объем выполненных работ, м2 | L41: 1000 | Q41: МКУ "ОКС"
D42: ФБ | E42: =F42+G42+H42+I42+J42 -> 0 | F42: 0 | G42: 0 | H42: 0 | I42: 0 | J42: 0
D43: ВБС | E43: =F43+G43+H43+I43+J43 -> 0 | F43: 0 | G43: 0 | H43: 0 | I43: 0 | J43: 0
B44: Итого по задаче 3: | D44: Всего | E44: =E46+E47+E48+E49 -> 3000000 | F44: 3000000 | G44: 0 | H44: 0 | I44: 0 | J44: 0
D45: в том числе:
D46: МБ | E46: =F46+G46+H46+I46+J46 -> 3000000 | F46: =F40 -> 3000000 | G46: 0 | H46: 0 | I46: 0 | J46: 0
D47: ОБ | E47: =F47+G47+H47+I47+J47 -> 0 | F47: 0 | G47: 0 | H47: 0 | I47: 0 | J47: 0
D48: ФБ | E48: =F48+G48+H48+I48+J48 -> 0 | F48: 0 | G48: 0 | H48: 0 | I48: 0 | J48: 0
D49: ВБС | E49: =F49+G49+H49+I49+J49 -> 0 | F49: 0 | G49: 0 | H49: 0 | I49: 0 | J49: 0
A50: 4 | B50: Задача 4: Строительство объекта похоронного назначения (кладбища).
A51: 4.1. | B51: Выполнение работ по строительству нового муниципального кладбища | C51: 2019 | D51: Всего | E51: =E52+E53+E54+E55 -> 0 | F51: 0 | G51: 0 | H51: 0 | I51: 0 | J51: 0 | K51: Объем ыполненных работ | L51: 0 | M51: 1 | N51: 0 | O51: 0 | P51: 0 | Q51: МКУ "ОКС"
D52: МБ | E52: =F52+G52+H52+I52+J52 -> 0 | F52: 0 | G52: 0 | H52: 0 | I52: 0 | J52: 0
D53: ОБ | E53: =F53+G53+H53+I53+J53 -> 0 | F53: 0 | G53: 0 | H53: 0 | I53: 0 | J53: 0
D54: ФБ | E54: =F54+G54+H54+I54+J54 -> 0 | F54: 0 | G54: 0 | H54: 0 | I54: 0 | J54: 0
D55: ВБС | E55: =F55+G55+H55+I55+J55 -> 0 | F55: 0 | G55: 0 | H55: 0 | I55: 0 | J55: 0
B56: Итого по задаче 4: | D56: Всего | E56: =E58+E59+E60+E61 -> 0 | F56: 0 | G56: 0 | H56: 0 | I56: 0 | J56: 0
D57: в том числе:
D58: МБ | E58: =F58+G58+H58+I58+J58 -> 0 | F58: =F52 -> 0 | G58: 0 | H58: 0 | I58: 0 | J58: 0
D59: ОБ | E59: =F59+G59+H59+I59+J59 -> 0 | F59: 0 | G59: 0 | H59: 0 | I59: 0 | J59: 0
D60: ФБ | E60: =F60+G60+H60+I60+J60 -> 0 | F60: 0 | G60: 0 | H60: 0 | I60: 0 | J60: 0
D61: ВБС | E61: =F61+G61+H61+I61+J61 -> 0 | F61: 0 | G61: 0 | H61: 0 | I61: 0 | J61: 0
B62: ВСЕГО по Подпрограмме 3: | D62: Всего | E62: =E64+E65+E66+E67 -> 5291805.4 | F62: 3458361.08 | G62: 458361.08 | H62: 458361.08 | I62: 458361.08 | J62: 458361.08
D63: в том числе:
D64: МБ | E64: =F64+G64+H64+I64+J64 -> 5291805.4 | F64: =F34+F22+F46+F58 -> 3458361.08 | G64: =G34+G22+G46+G58 -> 458361.08 | H64: =H34+H22+H46+H58 -> 458361.08 | I64: =I34+I22+I46+I58 -> 458361.08 | J64: =J34+J22+J46+J58 -> 458361.08
D65: ОБ | E65: =F65+G65+H65+I65+J65 -> 0 | F65: 0 | G65: 0 | H65: 0 | I65: 0 | J65: 0
D66: ФБ | E66: =F66+G66+H66+I66+J66 -> 0 | F66: =F36+F24 -> 0 | G66: 0 | H66: 0 | I66: 0 | J66: 0
D67: ВБС | E67: =F67+G67+H67+I67+J67 -> 0 | F67: 0 | G67: 0 | H67: 0 | I67: 0 | J67: 0

Sheet СВОД (hidden)
A2: Обоснование ресурсного обеспечения Программы
A4: Источник финансирования | B4: Всего, руб.коп. | C4: в том числе по годам реализации, руб.коп.
C5: 2018 год | D5: 2019 год | E5: 2020 год | F5: 2021 год | G5: 2022 год
A6: 1 | B6: 2 | C6: 3 | D6: 4 | E6: 5 | F6: 6 | G6: 7
A7: Всего по Подпрограммам 1-3 | B7: =B9+B10+B11+B12 -> 399370653.9 | C7: 101160323.3 | D7: 85348888.88 | E7: 81435737.29 | F7: 65712852.22 | G7: 65712852.22
A8: в том числе за счет средств:
A9: местного бюджета | B9: =SUM(C9:G9) -> 342767711 | C9: =C16+C23 -> 81907621.61 | D9: =D16+D23 -> 66673768.28 | E9: =E16+E23 -> 62760616.69 | F9: =F16+F23 -> 65712852.22 | G9: =G16+G23 -> 65712852.22
A10: областного бюджета | B10: =SUM(C10:G10) -> 56602942.85 | C10: =C17+C24 -> 19252701.65 | D10: 18675120.6 | E10: 18675120.6 | F10: =F17+F24 -> 0 | G10: 0
A11: федерального бюджета | B11: =SUM(C11:G11) -> 0 | C11: 0 | D11: 0 | E11: 0 | F11: 0 | G11: 0
A12: внебюджетных средств | B12: =SUM(C12:G12) -> 0 | C12: 0 | D12: 0 | E12: 0 | F12: 0 | G12: 0
A13: в том числе по Заказчикам:
A14: администрация ЗАТО Александровск | B14: =B16+B17+B18+B19 -> 399370653.9 | C14: 101160323.3 | D14: 85348888.88 | E14: 81435737.29 | F14: 65712852.22 | G14: 65712852.22
A15: в том числе за счет средств:
A16: местного бюджета | B16: =SUM(C16:G16) -> 342767711 | C16: ='Таблица 2 (1)'!C18+'Таблица 2 (2)'!C18+'Таблица 2 (3)'!C18 -> 81907621.61 | D16: ='Таблица 2 (1)'!D18+'Таблица 2 (2)'!D18+'Таблица 2 (3)'!D18 -> 66673768.28 | E16: ='Таблица 2 (1)'!E18+'Таблица 2 (2)'!E18+'Таблица 2 (3)'!E18 -> 62760616.69 | F16: ='Таблица 2 (1)'!F18+'Таблица 2 (2)'!F18+'Таблица 2 (3)'!F18 -> 65712852.22 | G16: ='Таблица 2 (1)'!G18+'Таблица 2 (2)'!G18+'Таблица 2 (3)'!G18 -> 65712852.22
A17: областного бюджета | B17: =SUM(C17:G17) -> 56602942.85 | C17: ='Таблица 2 (1)'!C19+'Таблица 2 (2)'!C19+'Таблица 2 (3)'!C19 -> 19252701.65 | D17: ='Таблица 2 (1)'!D19+'Таблица 2 (2)'!D19+'Таблица 2 (3)'!D19 -> 18675120.6 | E17: ='Таблица 2 (1)'!E19+'Таблица 2 (2)'!E19+'Таблица 2 (3)'!E19 -> 18675120.6 | F17: ='Таблица 2 (1)'!F19+'Таблица 2 (2)'!F19+'Таблица 2 (3)'!F19 -> 0 | G17: ='Таблица 2 (1)'!G19+'Таблица 2 (2)'!G19+'Таблица 2 (3)'!G19 -> 0
A18: федерального бюджета | B18: =SUM(C18:G18) -> 0 | C18: ='Таблица 2 (1)'!C20+'Таблица 2 (2)'!C20+'Таблица 2 (3)'!C20 -> 0 | D18: ='Таблица 2 (2)'!D20 -> 0 | E18: ='Таблица 2 (2)'!E20 -> 0 | F18: ='Таблица 2 (2)'!F20 -> 0 | G18: ='Таблица 2 (2)'!G20 -> 0
A19: внебюджетных средств | B19: =SUM(C19:G19) -> 0 | C19: ='Таблица 2 (1)'!C21+'Таблица 2 (2)'!C21+'Таблица 2 (3)'!C21 -> 0 | D19: ='Таблица 2 (1)'!C14 -> 0 | E19: ='Таблица 2 (1)'!D14 -> 0 | F19: ='Таблица 2 (1)'!E14 -> 0 | G19: ='Таблица 2 (1)'!F14 -> 0
A20: в том числе инвестиции в основной капитал | B20: =SUM(C20:G20) -> 6000000 | C20: ='Таблица 2 (1)'!C22+'Таблица 2 (2)'!C22+'Таблица 2 (3)'!C22 -> 6000000 | D20: 0 | E20: 0 | F20: 0 | G20: 0
A21: Администрация ЗАТО Александровск | B21: =B23+B24+B25+B26 -> 0 | C21: 0 | D21: 0 | E21: 0 | F21: 0 | G21: 0
A22: в том числе за счет средств:
A23: местного бюджета | B23: =SUM(C23:G23) -> 0
A24: областного бюджета | B24: =SUM(C24:G24) -> 0
A25: федерального бюджета | B25: =SUM(C25:G25) -> 0
A26: внебюджетных средств | B26: =SUM(C26:G26) -> 0
A27: в том числе инвестиции в основной капитал | B27: =SUM(C27:G27) -> 0
B29: =C29+D29+E29+F29+G29 -> 342767711 | C29: ='Таблица 3 (1)'!F40+'Таблица 3 (2)'!F100+'Таблица 3 (3)'!F64 -> 81907621.61 | D29: ='Таблица 3 (1)'!G40+'Таблица 3 (2)'!G100+'Таблица 3 (3)'!G64 -> 66673768.28 | E29: ='Таблица 3 (1)'!H40+'Таблица 3 (2)'!H100+'Таблица 3 (3)'!H64 -> 62760616.69 | F29: ='Таблица 3 (1)'!I40+'Таблица 3 (2)'!I100+'Таблица 3 (3)'!I64 -> 65712852.22 | G29: ='Таблица 3 (1)'!J40+'Таблица 3 (2)'!J100+'Таблица 3 (3)'!J64 -> 65712852.22
